fUST/lending_fUST_20250828
["ID","MTS","AMOUNT","RATE_DAILY","PERIOD"]
[381795323,1756351839006,-663.51,0.00020628,2]
[381795324,1756351839016,-614.48,0.00020628,2]
[381795325,1756351839026,-480.0,0.00020628,2]
[381795326,1756351839035,-3429.46,0.00020628,2]
[381795327,1756351839044,-2001.5,0.00020628,2]
[381795328,1756351839054,-1331.76,0.00020628,2]
[381795329,1756351839063,-574.97,0.00020628,2]
[381795330,1756351839072,-480.0,0.00020628,2]
[381795331,1756351839082,-1697.51,0.00020628,2]
[381795332,1756351839091,-480.0,0.00020628,2]
[381795333,1756351839100,-772.38,0.00020628,2]
[381795334,1756351839109,-1314.65,0.00020628,2]
[381795335,1756351839119,-480.0,0.00020628,2]
[381795336,1756351839129,-1549.99,0.00020628,2]
[381795337,1756351839139,-605.84,0.00020628,2]
[381795338,1756351839148,-777.36,0.00020628,2]
[381795339,1756351839157,-480.0,0.00020628,2]
[381795340,1756351839167,-480.0,0.00020628,2]
[381795341,1756351839176,-480.0,0.00020628,2]
[381795342,1756351839186,-1054.59,0.00020628,2]
[381795343,1756351839195,-1649.91,0.00020628,2]
[381795344,1756351839204,-1815.18,0.00020628,2]
[381795345,1756351839214,-1824.07,0.00020628,2]
[381795346,1756351839223,-555.98,0.00020628,2]
[381795347,1756351839232,-480.0,0.00020628,2]
[381795348,1756351839242,-517.32,0.00020631,3]
[381795349,1756351839251,-2434.74389024,0.00020633,2]
[381795350,1756351839460,-480.0,0.00020639,2]
[381795351,1756351839473,-480.0,0.00020639,2]
[381795352,1756351839483,-480.0,0.00020639,2]
[381795353,1756351839493,-480.0,0.00020639,2]
[381795354,1756351839504,-480.0,0.00020639,2]
[381795355,1756351839514,-839.27,0.00020639,2]
[381795356,1756351839525,-480.0,0.00020639,2]
[381795357,1756351839536,-1284.77,0.00020639,2]
[381795358,1756351839545,-1216.01,0.00020639,2]
[381795359,1756351839554,-480.0,0.00020639,2]
[381795360,1756351839565,-480.0,0.00020639,2]
[381795361,1756351839574,-482.02212423,0.00020639,2]
[381795362,1756351839583,-480.0,0.00020639,2]
[381795363,1756351839594,-1613.99,0.00020639,2]
[381795364,1756351839605,-629.98,0.00020639,2]
[381795365,1756351839614,-480.0,0.00020639,2]
[381795366,1756351839623,-480.0,0.00020639,2]
[381795367,1756351839634,-1560.74,0.00020639,2]
[381795368,1756351839643,-480.0,0.00020639,2]
[381795369,1756351839652,-1963.49,0.00020639,2]
[381795370,1756351839662,-480.0,0.00020639,2]
[381795371,1756351839671,-480.0,0.00020639,2]
[381795372,1756351839680,-480.0,0.00020639,2]
[381795373,1756351839690,-480.0,0.00020639,2]
[381795374,1756351839699,-152.9354933,0.00020639,2]
[381795375,1756351839709,-480.0,0.00020639,2]
[381795376,1756351839718,-480.0,0.00020639,2]
[381795377,1756351839727,-4222.52,0.00020639,2]
[381795378,1756351839737,-2363.03,0.00020639,2]
[381795379,1756351839746,-649.06,0.00020639,2]
[381795380,1756351839759,-480.0,0.00020639,2]
[381795381,1756351839769,-1241.29,0.00020639,2]
[381795382,1756351839778,-480.0,0.00020639,2]
[381795383,1756351839788,-480.0,0.00020639,2]
[381795384,1756351839798,-349.52111818,0.00020639,2]
[381795385,1756351839808,-480.0,0.00020641,2]
[381795386,1756351839817,-480.95822693,0.00020641,2]
[381795387,1756351839827,-622.0,0.00020641,2]
[381795388,1756351839838,-755.66,0.00020641,2]
[381795389,1756351839848,-480.0,0.00020641,2]
[381795390,1756351839857,-480.0,0.00020641,2]
[381795391,1756351839867,-822.74,0.00020641,2]
[381795392,1756351839877,-480.0,0.00020641,2]
[381795393,1756351839886,-1185.9,0.00020641,2]
[381795394,1756351839896,-1784.19,0.00020641,2]
[381795395,1756351839906,-949.51,0.00020641,2]
[381795396,1756351839915,-480.0,0.00020641,2]
[381795397,1756351839925,-632.4,0.00020641,2]
[381795398,1756351839934,-480.0,0.00020641,2]
[381795399,1756351839943,-480.0,0.00020641,2]
[381795400,1756351839953,-480.0,0.00020641,2]
[381795401,1756351839964,-682.45,0.00020641,2]
[381795402,1756351839974,-484.04,0.00020641,2]
[381795403,1756351839983,-481.1987029,0.00020641,2]
[381795404,1756351839993,-601.04,0.00020641,2]
[381795405,1756351840002,-500.0,0.00020641,2]
[381795406,1756351840011,-759.31,0.00020641,2]
[381795407,1756351840021,-807.4,0.00020641,2]
[381795408,1756351840033,-768.19,0.00020641,2]
[381795409,1756351840042,-510.26,0.00020641,2]
[381795410,1756351840051,-532.02,0.00020641,2]
[381795411,1756351840061,-681.41,0.00020641,2]
[381795412,1756351840071,-1242.33,0.00020641,2]
[381795413,1756351840081,-480.0,0.00020641,2]
[381795414,1756351840090,-602.62,0.00020641,2]
[381795415,1756351840099,-480.0,0.00020641,2]
[381795416,1756351840110,-1145.97,0.00020641,2]
[381795417,1756351840119,-632.39,0.00020641,2]
[381795418,1756351840129,-1785.89,0.00020641,2]
[381795419,1756351840138,-1142.3,0.00020641,2]
[381795420,1756351840147,-480.0,0.00020641,2]
[381795421,1756351840158,-480.0,0.00020641,2]
[381795422,1756351840167,-480.0,0.00020641,2]
[381795423,1756351840176,-480.0,0.00020641,2]
[381795424,1756351840186,-512.03,0.00020641,2]
[381795425,1756351840195,-903.2,0.00020641,2]
[381795426,1756351840205,-627.33,0.00020641,2]
[381795427,1756351840214,-584.01,0.00020641,2]
[381795428,1756351840223,-525.48,0.00020641,2]
[381795429,1756351840233,-1073.96,0.00020641,2]
[381795430,1756351840242,-598.74,0.00020641,2]
[381795431,1756351840251,-738.84,0.00020641,2]
[381795432,1756351840261,-480.0,0.00020641,2]
[381795434,1756351840270,-538.85,0.00020641,2]
[381795436,1756351840291,-526.96,0.00020641,2]
[381795438,1756351840300,-480.0,0.00020641,2]
[381795439,1756351840310,-480.0,0.00020641,2]
[381795440,1756351840320,-480.0,0.00020641,2]
[381795441,1756351840330,-990.1,0.00020641,2]
[381795442,1756351840340,-585.91,0.00020641,2]
[381795443,1756351840349,-480.0,0.00020641,2]
[381795444,1756351840359,-1489.35,0.00020641,2]
[381795445,1756351840369,-480.0,0.00020641,2]
[381795446,1756351840379,-480.0,0.00020641,2]
[381795448,1756351840389,-480.0,0.00020641,2]
[381795450,1756351840399,-480.0,0.00020641,2]
[381795451,1756351840408,-688.92,0.00020641,2]
[381795452,1756351840418,-480.0,0.00020641,2]
[381795453,1756351840428,-480.0,0.00020641,2]
[381795454,1756351840437,-785.94,0.00020641,2]
[381795455,1756351840447,-480.0,0.00020641,2]
[381795456,1756351840458,-480.0,0.00020641,2]
[381795457,1756351840468,-480.0,0.00020641,2]
[381795458,1756351840478,-480.0,0.00020641,2]
[381795459,1756351840487,-540.97,0.00020641,2]
[381795460,1756351840497,-480.0,0.00020641,2]
[381795461,1756351840507,-480.0,0.00020641,2]
[381795462,1756351840517,-480.0,0.00020641,2]
[381795463,1756351840526,-819.28,0.00020641,2]
[381795464,1756351840536,-1050.11,0.00020641,2]
[381795466,1756351840545,-480.0,0.00020641,2]
[381795468,1756351840555,-480.0,0.00020641,2]
[381795469,1756351840565,-480.0,0.00020641,2]
[381795470,1756351840574,-546.64,0.00020641,2]
[381795471,1756351840584,-1410.89,0.00020641,2]
[381795472,1756351840593,-4054.55,0.00020641,2]
[381795473,1756351840603,-480.0,0.00020641,2]
[381795474,1756351840613,-480.0,0.00020641,2]
[381795475,1756351840622,-480.0,0.00020641,2]
[381795476,1756351840632,-480.0,0.00020641,2]
[381795477,1756351840642,-531.15,0.00020641,2]
[381795478,1756351840651,-480.0,0.00020641,2]
[381795479,1756351840661,-480.0,0.00020641,2]
[381795480,1756351840670,-480.0,0.00020641,2]
[381795481,1756351840680,-9528.66005279,0.00020642,2]
[381795482,1756351840690,-3134.70306398,0.00020643,2]
[381795483,1756351840699,-1313.70471785,0.00020653,2]
[381795484,1756351840709,-2524.82941417,0.00020688,2]
[381795485,1756351840719,-500.0,0.000207,2]
[381795486,1756351840728,-451.50366429,0.00020713,2]
[381795487,1756351840738,-1000.0,0.00020741,2]
[381795488,1756351840748,-1000.0,0.00020741,2]
[381795489,1756351840762,-1000.0,0.00020741,2]
[381795490,1756351840772,-1000.0,0.00020741,2]
[381795491,1756351840781,-1000.0,0.00020741,2]
[381795492,1756351840791,-1000.0,0.00020741,2]
[381795493,1756351840801,-151.0,0.00020741,2]
[381795494,1756351840810,-1000.0,0.00020741,2]
[381795495,1756351840820,-151.0,0.00020741,2]
[381795496,1756351840830,-1000.0,0.00020741,2]
[381795497,1756351840840,-163.79948588,0.00020741,2]
[381795498,1756351840849,-194.72792766,0.00020741,2]
[381795499,1756351840859,-742.93176021,0.00020741,2]
[381795500,1756351840868,-151.0,0.00020741,2]
[381795501,1756351840878,-151.0,0.00020741,2]
[381795502,1756351840887,-151.0,0.00020741,2]
[381795503,1756351840896,-151.0,0.00020741,2]
[381795504,1756351840906,-151.0,0.00020741,2]
[381795505,1756351840916,-151.0,0.00020741,2]
[381795506,1756351840927,-151.0,0.00020741,2]
[381795507,1756351840937,-151.0,0.00020741,2]
[381795508,1756351840946,-151.0,0.00020741,2]
[381795509,1756351840955,-151.0,0.00020741,2]
[381795510,1756351840965,-151.0,0.00020741,2]
[381795511,1756351840974,-151.0,0.00020741,2]
[381795512,1756351840983,-151.0,0.00020741,2]
[381795513,1756351840993,-151.0,0.00020741,2]
[381795514,1756351841003,-151.0,0.00020741,2]
[381795515,1756351841012,-151.0,0.00020741,2]
[381795516,1756351841022,-151.0,0.00020741,2]
[381795517,1756351841031,-151.0,0.00020741,2]
[381795518,1756351841041,-151.0,0.00020741,2]
[381795519,1756351841051,-196.72106526,0.00020741,2]
[381795520,1756351841063,-459.64861499,0.00020741,2]
[381795521,1756351841072,-151.0,0.00020741,2]
[381795522,1756351841081,-151.0,0.00020741,2]
[381795523,1756351841091,-1000.0,0.00020741,2]
[381795524,1756351841100,-1000.0,0.00020741,2]
[381795525,1756351841117,-1000.0,0.00020741,2]
[381795526,1756351841128,-1000.0,0.00020741,2]
[381795527,1756351841139,-1000.0,0.00020741,2]
[381795528,1756351841148,-1000.0,0.00020741,2]
[381795529,1756351841157,-1000.0,0.00020741,2]
[381795530,1756351841167,-1000.0,0.00020741,2]
[381795531,1756351841176,-1000.0,0.00020741,2]
[381795532,1756351841188,-1000.0,0.00020741,2]
[381795533,1756351841197,-1000.0,0.00020741,2]
[381795534,1756351841214,-1000.0,0.00020741,2]
[381795535,1756351841231,-1000.0,0.00020741,2]
[381795536,1756351841249,-2973.82,0.00020742,2]
[381795537,1756351841263,-480.0,0.00020742,2]
[381795538,1756351841277,-480.0,0.00020742,2]
[381795539,1756351841292,-481.19240102,0.00020742,2]
[381795540,1756351841307,-480.0,0.00020742,2]
[381795541,1756351841323,-480.0,0.00020742,2]
[381795542,1756351841337,-480.0,0.00020742,2]
[381795543,1756351841353,-695.26,0.00020742,2]
[381795544,1756351841369,-1252.17,0.00020742,2]
[381795545,1756351841384,-2667.91725296,0.00020743,2]
[381795546,1756351841400,-481.18494462,0.00020753,2]
[381795547,1756351841416,-480.0,0.00020753,2]
[381795548,1756351841430,-480.0,0.00020753,2]
[381795549,1756351841445,-480.0,0.00020753,2]
[381795550,1756351841456,-514.34,0.00020753,2]
[381795551,1756351841468,-480.0,0.00020753,2]
[381795552,1756351841481,-480.0,0.00020753,2]
[381795553,1756351841496,-308.54855525,0.00020753,2]
[381795554,1756351841512,-480.0,0.00020753,2]
[381795555,1756351841526,-480.0,0.00020753,2]
[381795556,1756351841541,-480.0,0.00020753,2]
[381795557,1756351841557,-489.47,0.00020753,2]
[381795558,1756351841569,-481.68499637,0.00020753,2]
[381795559,1756351841580,-481.84718001,0.00020753,2]
[381795560,1756351841591,-546.88648319,0.00020753,2]
[381795561,1756351841605,-480.0,0.00020753,2]
[381795562,1756351841619,-480.0,0.00020753,2]
[381795563,1756351841632,-480.0,0.00020753,2]
[381795564,1756351841644,-480.0,0.00020753,2]
[381795565,1756351841656,-480.0,0.00020753,2]
[381795566,1756351841671,-480.0,0.00020753,2]
[381795567,1756351841682,-480.0,0.00020753,2]
[381795568,1756351841693,-480.0,0.00020753,2]
[381795569,1756351841705,-480.0,0.00020753,2]
[381795570,1756351841716,-480.0,0.00020753,2]
[381795571,1756351841728,-656.24,0.00020753,2]
[381795572,1756351841742,-480.0,0.00020753,2]
[381795573,1756351841756,-480.0,0.00020753,2]
[381795574,1756351841771,-480.0,0.00020753,2]
[381795575,1756351841783,-480.0,0.00020753,2]
[381795576,1756351841801,-480.90412384,0.00020753,2]
[381795577,1756351841813,-480.0,0.00020753,2]
[381795578,1756351841825,-480.91481663,0.00020753,2]
[381795579,1756351841838,-558.46,0.00020753,2]
[381795580,1756351841851,-480.0,0.00020753,2]
[381795581,1756351841863,-480.0,0.00020753,2]
[381795582,1756351841876,-480.0,0.00020753,2]
[381795583,1756351841889,-480.0,0.00020753,2]
[381795584,1756351841902,-480.0,0.00020753,2]
[381795585,1756351841915,-480.0,0.00020753,2]
[381795586,1756351841928,-480.0,0.00020753,2]
[381795587,1756351841944,-480.0,0.00020753,2]
[381795588,1756351841957,-480.0,0.00020753,2]
[381795589,1756351841970,-480.0,0.00020753,2]
[381795590,1756351841982,-628.97,0.00020753,2]
[381795591,1756351841994,-480.0,0.00020753,2]
[381795592,1756351842006,-631.53,0.00020753,2]
[381795593,1756351842018,-363.60861548,0.00020753,2]
[381795594,1756351842031,-480.0,0.00020753,2]
[381795595,1756351842043,-480.0,0.00020753,2]
[381795596,1756351842054,-481.21204569,0.00020753,2]
[381795597,1756351842066,-480.0,0.00020753,2]
[381795598,1756351842078,-480.0,0.00020753,2]
[381795599,1756351842090,-589.92,0.00020753,2]
[381795600,1756351842101,-480.0,0.00020753,2]
[381795601,1756351842113,-480.0,0.00020753,2]
[381795602,1756351842124,-480.0,0.00020753,2]
[381795603,1756351842136,-480.0,0.00020753,2]
[381795604,1756351842148,-480.0,0.00020753,2]
[381795605,1756351842159,-480.0,0.00020753,2]
[381795606,1756351842171,-466.28953477,0.00020753,2]
[381795607,1756351842183,-612.89,0.00020753,2]
[381795608,1756351842195,-480.0,0.00020753,2]
[381795609,1756351842206,-480.0,0.00020753,2]
[381795610,1756351842217,-480.0,0.00020753,2]
[381795611,1756351842229,-480.0,0.00020753,2]
[381795612,1756351842241,-336.04216955,0.00020753,2]
[381795613,1756351842253,-480.0,0.00020753,2]
[381795614,1756351842265,-480.0,0.00020753,2]
[381795615,1756351842277,-481.84747336,0.00020753,2]
[381795616,1756351842288,-480.0,0.00020753,2]
[381795617,1756351842300,-480.0,0.00020753,2]
[381795618,1756351842312,-481.10306388,0.00020753,2]
[381795619,1756351842323,-480.0,0.00020753,2]
[381795620,1756351842335,-480.0,0.00020753,2]
[381795621,1756351842347,-480.0,0.00020753,2]
[381795622,1756351842360,-480.0,0.00020753,2]
[381795623,1756351842373,-480.0,0.00020753,2]
[381795624,1756351842385,-480.0,0.00020753,2]
[381795625,1756351842398,-506.03267917,0.00020753,2]
[381795626,1756351842409,-480.0,0.00020753,2]
[381795627,1756351842422,-480.0,0.00020753,2]
[381795628,1756351842434,-480.0,0.00020753,2]
[381795629,1756351842446,-480.0,0.00020753,2]
[381795630,1756351842457,-480.0,0.00020753,2]
[381795631,1756351842469,-480.0,0.00020753,2]
[381795632,1756351842481,-480.0,0.00020753,2]
[381795633,1756351842494,-480.0,0.00020753,2]
[381795634,1756351842505,-480.0,0.00020753,2]
[381795635,1756351842517,-241.21138148,0.00020753,2]
[381795636,1756351842528,-480.0,0.00020753,2]
[381795637,1756351842541,-480.0,0.00020753,2]
[381795638,1756351842553,-480.0,0.00020753,2]
[381795639,1756351842564,-467.54593202,0.00020753,2]
[381795640,1756351842577,-480.0,0.00020753,2]
[381795641,1756351842589,-480.0,0.00020753,2]
[381795642,1756351842601,-480.91254447,0.00020753,2]
[381795643,1756351842613,-534.05,0.00020753,2]
[381795644,1756351842625,-480.0,0.00020753,2]
[381795645,1756351842638,-480.0,0.00020753,2]
[381795646,1756351842649,-480.0,0.00020753,2]
[381795647,1756351842660,-480.0,0.00020753,2]
[381795648,1756351842672,-480.0,0.00020753,2]
[381795649,1756351842684,-483.3933509,0.00020753,2]
[381795650,1756351842699,-480.0,0.00020753,2]
[381795651,1756351842714,-480.0,0.00020753,2]
[381795652,1756351842728,-480.0,0.00020753,2]
[381795653,1756351842741,-554.03,0.00020753,2]
[381795654,1756351842756,-480.0,0.00020753,2]
[381795655,1756351842768,-480.0,0.00020753,2]
[381795656,1756351842780,-480.0,0.00020753,2]
[381795657,1756351842791,-480.0,0.00020753,2]
[381795658,1756351842804,-480.0,0.00020753,2]
[381795659,1756351842816,-480.0,0.00020753,2]
[381795660,1756351842828,-480.0,0.00020753,2]
[381795661,1756351842840,-480.0,0.00020753,2]
[381795662,1756351842852,-480.0,0.00020753,2]
[381795663,1756351842865,-506.44,0.00020753,2]
[381795664,1756351842876,-480.0,0.00020753,2]
[381795665,1756351842888,-480.0,0.00020753,2]
[381795666,1756351842900,-585.81,0.00020753,2]
[381795667,1756351842911,-480.0,0.00020753,2]
[381795668,1756351842922,-480.0,0.00020753,2]
[381795669,1756351842934,-480.0,0.00020753,2]
[381795670,1756351842945,-722.77,0.00020753,2]
[381795671,1756351842959,-480.0,0.00020753,2]
[381795672,1756351842972,-276.01367867,0.00020753,2]
[381795674,1756351842984,-480.0,0.00020753,2]
[381795675,1756351842995,-480.0,0.00020753,2]
[381795676,1756351843007,-480.0,0.00020753,2]
[381795677,1756351843021,-875.55,0.00020753,2]
[381795678,1756351843032,-480.0,0.00020753,2]
[381795679,1756351843044,-480.0,0.00020753,2]
[381795680,1756351843056,-480.0,0.00020753,2]
[381795681,1756351843068,-480.0,0.00020753,2]
[381795682,1756351843079,-480.0,0.00020753,2]
[381795683,1756351843091,-1387.83,0.00020753,2]
[381795684,1756351843102,-729.43,0.00020753,2]
[381795685,1756351843115,-490.06,0.00020753,2]
[381795686,1756351843125,-483.8998022,0.00020753,2]
[381795687,1756351843135,-480.0,0.00020753,2]
[381795688,1756351843144,-480.0,0.00020753,2]
[381795689,1756351843155,-480.0,0.00020753,2]
[381795690,1756351843165,-480.0,0.00020753,2]
[381795691,1756351843175,-480.0,0.00020753,2]
[381795692,1756351843184,-565.38,0.00020753,2]
[381795693,1756351843193,-499.48,0.00020753,2]
[381795694,1756351843202,-480.0,0.00020753,2]
[381795695,1756351843212,-480.0,0.00020753,2]
[381795696,1756351843221,-480.0,0.00020753,2]
[381795697,1756351843230,-585.29,0.00020753,2]
[381795698,1756351843239,-480.0,0.00020753,2]
[381795699,1756351843249,-820.53,0.00020753,2]
[381795700,1756351843258,-480.0,0.00020753,2]
[381795701,1756351843267,-480.0,0.00020753,2]
[381795702,1756351843277,-480.0,0.00020753,2]
[381795703,1756351843286,-443.23879149,0.00020753,2]
[381795708,1756351843606,-480.0,0.00020753,2]
[381795709,1756351843631,-480.0,0.00020753,2]
[381795710,1756351843644,-480.0,0.00020753,2]
[381795711,1756351843656,-480.0,0.00020753,2]
[381795712,1756351843666,-371.58743751,0.00020753,2]
[381795713,1756351843676,-480.0,0.00020753,2]
[381795714,1756351843685,-308.55461164,0.00020753,2]
[381795715,1756351843695,-480.0,0.00020753,2]
[381795716,1756351843706,-480.0,0.00020753,2]
[381795717,1756351843715,-480.0,0.00020753,2]
[381795718,1756351843726,-480.0,0.00020753,2]
[381795719,1756351843735,-480.0,0.00020753,2]
[381795720,1756351843745,-480.0,0.00020753,2]
[381795721,1756351843759,-480.0,0.00020753,2]
[381795722,1756351843768,-480.0,0.00020753,2]
[381795723,1756351843777,-820.26,0.00020753,2]
[381795724,1756351843787,-525.69,0.00020753,2]
[381795725,1756351843799,-480.0,0.00020753,2]
[381795726,1756351843808,-487.23,0.00020753,2]
[381795727,1756351843820,-494.83,0.00020753,2]
[381795728,1756351843833,-480.0,0.00020753,2]
[381795729,1756351843842,-480.0,0.00020753,2]
[381795730,1756351843851,-480.0,0.00020753,2]
[381795731,1756351843861,-480.0,0.00020753,2]
[381795732,1756351843870,-480.0,0.00020753,2]
[381795733,1756351843879,-480.0,0.00020753,2]
[381795734,1756351843888,-480.0,0.00020753,2]
[381795735,1756351843897,-1111.25,0.00020753,2]
[381795736,1756351843908,-480.0,0.00020753,2]
[381795737,1756351843917,-480.0,0.00020753,2]
[381795738,1756351843927,-480.0,0.00020753,2]
[381795739,1756351843938,-480.0,0.00020753,2]
[381795740,1756351843948,-374.70383773,0.00020753,2]
[381795741,1756351843959,-480.0,0.00020753,2]
[381795742,1756351843970,-480.0,0.00020753,2]
[381795743,1756351843979,-480.0,0.00020753,2]
[381795744,1756351843988,-832.87,0.00020753,2]
[381795745,1756351843997,-990.48,0.00020753,2]
[381795746,1756351844007,-480.0,0.00020753,2]
[381795747,1756351844017,-480.0,0.00020753,2]
[381795748,1756351844028,-485.20204178,0.00020753,2]
[381795749,1756351844038,-480.0,0.00020753,2]
[381795750,1756351844047,-480.0,0.00020753,2]
[381795751,1756351844058,-480.0,0.00020753,2]
[381795752,1756351844068,-491.85,0.00020753,2]
[381795753,1756351844079,-480.0,0.00020753,2]
[381795754,1756351844089,-480.0,0.00020753,2]
[381795755,1756351844098,-480.0,0.00020753,2]
[381795756,1756351844108,-1006.69,0.00020753,2]
[381795757,1756351844117,-480.0,0.00020753,2]
[381795758,1756351844126,-480.0,0.00020753,2]
[381795759,1756351844136,-480.0,0.00020753,2]
[381795760,1756351844146,-480.0,0.00020753,2]
[381795761,1756351844155,-671.04,0.00020753,2]
[381795762,1756351844164,-480.0,0.00020753,2]
[381795763,1756351844174,-480.0,0.00020753,2]
[381795764,1756351844183,-480.0,0.00020753,2]
[381795765,1756351844192,-520.1,0.00020753,2]
[381795766,1756351844201,-389.80839688,0.00020753,2]
[381795767,1756351844210,-480.0,0.00020753,2]
[381795768,1756351844220,-194.69647437,0.00020753,2]
[381795769,1756351844229,-534.5613856,0.00020753,2]
[381795770,1756351844238,-480.0,0.00020753,2]
[381795771,1756351844247,-480.0,0.00020753,2]
[381795772,1756351844256,-480.0,0.00020753,2]
[381795773,1756351844266,-480.0,0.00020753,2]
[381795774,1756351844276,-480.0,0.00020753,2]
[381795775,1756351844285,-480.0,0.00020753,2]
[381795776,1756351844295,-558.5,0.00020753,2]
[381795777,1756351844304,-480.0,0.00020753,2]
[381795778,1756351844314,-5296.13,0.00020753,2]
[381795779,1756351844323,-480.0,0.00020753,2]
[381795780,1756351844332,-480.0,0.00020753,2]
[381795781,1756351844342,-480.0,0.00020753,2]
[381795782,1756351844351,-480.0,0.00020753,2]
[381795783,1756351844360,-480.0,0.00020753,2]
[381795784,1756351844369,-480.0,0.00020753,2]
[381795785,1756351844379,-480.0,0.00020753,2]
[381795786,1756351844388,-480.0,0.00020753,2]
[381795787,1756351844397,-173.07890117,0.00020753,2]
[381795788,1756351844406,-480.0,0.00020753,2]
[381795789,1756351844415,-480.0,0.00020753,2]
[381795790,1756351844424,-1022.55,0.00020753,2]
[381795791,1756351844433,-2747.11,0.00020753,2]
[381795792,1756351844442,-480.0,0.00020753,2]
[381795793,1756351844451,-480.0,0.00020753,2]
[381795794,1756351844460,-480.0,0.00020753,2]
[381795795,1756351844469,-480.0,0.00020753,2]
[381795796,1756351844479,-540.49,0.00020753,2]
[381795797,1756351844488,-528.45,0.00020753,2]
[381795798,1756351844497,-480.0,0.00020753,2]
[381795799,1756351844506,-568.8,0.00020753,2]
[381795800,1756351844515,-480.0,0.00020753,2]
[381795801,1756351844524,-667.72,0.00020753,2]
[381795802,1756351844533,-480.0,0.00020753,2]
[381795803,1756351844543,-625.83,0.00020753,2]
[381795804,1756351844552,-480.0,0.00020753,2]
[381795805,1756351844561,-480.0,0.00020753,2]
[381795806,1756351844571,-480.0,0.00020753,2]
[381795807,1756351844580,-480.0,0.00020753,2]
[381795808,1756351844590,-480.0,0.00020753,2]
[381795809,1756351844600,-493.78,0.00020753,2]
[381795810,1756351844610,-480.0,0.00020753,2]
[381795811,1756351844620,-480.0,0.00020753,2]
[381795812,1756351844630,-405.03008067,0.00020753,2]
[381795813,1756351844639,-481.99757906,0.00020753,2]
[381795814,1756351844650,-480.0,0.00020753,2]
[381795815,1756351844659,-480.0,0.00020753,2]
[381795816,1756351844668,-480.0,0.00020753,2]
[381795817,1756351844678,-5091.47,0.00020753,2]
[381795818,1756351844687,-480.0,0.00020753,2]
[381795819,1756351844696,-630.02,0.00020753,2]
[381795820,1756351844705,-480.0,0.00020753,2]
[381795821,1756351844714,-480.0,0.00020753,2]
[381795822,1756351844723,-480.0,0.00020753,2]
[381795823,1756351844732,-707.51,0.00020753,2]
[381795824,1756351844741,-480.0,0.00020753,2]
[381795825,1756351844752,-480.0,0.00020753,2]
[381795826,1756351844764,-480.0,0.00020753,2]
[381795827,1756351844774,-480.51336113,0.00020753,2]
[381795828,1756351844783,-833.91,0.00020753,2]
[381795829,1756351844792,-617.8,0.00020753,2]
[381795830,1756351844802,-150.0,0.00020753,2]
[381795831,1756351844812,-687.21,0.00020753,2]
[381795832,1756351844821,-515.71,0.00020753,2]
[381795833,1756351844832,-477.10053153,0.00020753,2]
[381795834,1756351844841,-480.0,0.00020753,2]